fUST/lending_fUST_20260105
["ID","MTS","AMOUNT","RATE_DAILY","PERIOD"]
[400434151,1767549863937,500.0,0.00030136,120]
[400434152,1767549864196,500.0,0.00030136,120]
[400434153,1767549864429,500.0,0.00030136,120]
[400434154,1767549864680,490.01648627,0.00030136,120]
[400434155,1767549865377,500.0,0.00030136,120]
[400434156,1767549865635,500.0,0.00030136,120]
[400434157,1767549865717,500.0,0.00030136,120]
[400434158,1767549865872,500.0,0.00030136,120]
[400434159,1767549865985,189.85655417,0.00030136,120]
[400434160,1767549866155,423.11472839,0.00030136,120]
[400434161,1767549868359,500.0,0.00030136,120]
[400434162,1767549868594,541.69888067,0.00030136,120]
[400434163,1767549868697,500.0,0.00030136,120]
[400434164,1767549868956,500.0,0.00030136,120]
[400434165,1767549869228,500.0,0.00030136,120]
[400434166,1767549869467,513.03648524,0.00030136,120]
[400434167,1767549869512,500.0,0.00030136,120]
[400434168,1767549869743,500.0,0.00030136,120]
[400434169,1767549869996,500.0,0.00030136,120]
[400434170,1767549870242,500.0,0.00030136,120]
[400434171,1767549870472,500.0,0.00030136,120]
[400434172,1767549870702,500.0,0.00030136,120]
[400434173,1767549870930,500.0,0.00030136,120]
[400434174,1767549871366,500.0,0.00030136,120]
[400434175,1767549871451,500.0,0.00030136,120]
[400434176,1767549871758,500.0,0.00030136,120]
[400434177,1767549872328,500.0,0.00030136,120]
[400434178,1767549872488,500.0,0.00030136,120]
[400434179,1767549872567,500.0,0.00030136,120]
[400434180,1767549872666,500.0,0.00030136,120]
[400434181,1767549872913,500.0,0.00030136,120]
[400434182,1767549873185,500.0,0.00030136,120]
[400434183,1767549873377,500.0,0.00030136,120]
[400434184,1767549873597,500.0,0.00030136,120]
[400434185,1767549873818,500.0,0.00030136,120]
[400434186,1767549874067,154.69548804,0.00030136,120]
[400434188,1767549879007,500.0,0.00030136,120]
[400434189,1767549879255,500.0,0.00030136,120]
[400434190,1767549879703,500.0,0.00030136,120]
[400434191,1767549879779,500.0,0.00030136,120]
[400434192,1767549880041,440.48889554,0.00030136,120]
[400434193,1767549881212,500.0,0.00030136,120]
[400434194,1767549881440,500.0,0.00030136,120]
[400434195,1767549881671,558.69247898,0.00030136,120]
[400434196,1767549881903,500.0,0.00030136,120]
[400434197,1767549882181,500.0,0.00030136,120]
[400434198,1767549882425,500.0,0.00030136,120]
[400434199,1767549882674,500.0,0.00030136,120]
[400434200,1767549882921,621.42034317,0.00030136,120]
[400434201,1767549884378,598.49827446,0.00030136,120]
[400434202,1767549885003,500.0,0.00030136,120]
[400434203,1767549885353,500.0,0.00030136,120]
[400434204,1767549885588,500.0,0.00030136,120]
[400434205,1767549885965,500.0,0.00030136,120]
[400434206,1767549886094,269.12119635,0.00030136,120]
[400434207,1767549887590,500.0,0.00030136,120]
[400434208,1767549887790,500.0,0.00030136,120]
[400434209,1767549887832,500.0,0.00030136,120]
[400434210,1767549888027,500.0,0.00030136,120]
[400434211,1767549888073,500.0,0.00030136,120]
[400434212,1767549888281,607.92576243,0.00030136,120]
[400434213,1767549888325,518.65549833,0.00030136,120]
[400434214,1767549888636,-300.0,9.964e-05,2]
[400434215,1767549888666,-1000.74899456,9.964e-05,2]
[400434216,1767549888849,500.0,0.00030136,120]
[400434217,1767549889078,523.70339249,0.00030136,120]
[400434218,1767549891230,-300.00000003,9.964e-05,2]
[400434219,1767549892620,525.88411224,0.00030136,120]
[400434220,1767549893821,-199.99999997,9.964e-05,2]
[400434221,1767549893848,-115.29069932,9.964e-05,2]
[400434222,1767549894014,500.0,0.00030136,120]
[400434223,1767549894252,500.0,0.00030136,120]
[400434224,1767549894522,500.0,0.00030136,120]
[400434225,1767549894793,500.0,0.00030136,120]
[400434226,1767549894987,500.0,0.00030136,120]
[400434227,1767549895045,595.78395122,0.00030136,120]
[400434228,1767549895219,500.0,0.00030136,120]
[400434229,1767549895497,500.0,0.00030136,120]
[400434230,1767549895723,531.1468619,0.00030136,120]
[400434231,1767549896130,-151.79753616,9.964e-05,2]
[400434232,1767549897313,500.0,0.00030136,120]
[400434233,1767549897457,590.22974425,0.00030136,120]
[400434234,1767549898677,-232.91176452,9.964e-05,2]
[400434235,1767549898698,-26.30302244,9.964e-05,2]
[400434236,1767549899613,563.69819055,0.00030136,120]
[400434237,1767549900471,500.0,0.00030136,120]
[400434238,1767549900804,500.0,0.00030136,120]
[400434239,1767549900951,500.0,0.00030136,120]
[400434240,1767549901094,500.0,0.00030136,120]
[400434241,1767549901189,500.0,0.00030136,120]
[400434242,1767549901216,300.0,9.963e-05,2]
[400434243,1767549901320,547.85346765,0.00030136,120]
[400434244,1767549901428,500.0,0.00030136,120]
[400434245,1767549901536,-473.69697756,9.964e-05,2]
[400434246,1767549901558,-500.0,9.964e-05,2]
[400434247,1767549901584,-155.29460028,9.964e-05,2]
[400434248,1767549901703,541.51701442,0.00030136,120]
[400434250,1767549901991,300.0,9.963e-05,2]
[400434257,1767549902594,300.0,9.963e-05,2]
[400434258,1767549903141,-226.17522684,9.964e-05,2]
[400434259,1767549905275,-118.53017288,9.964e-05,2]
[400434260,1767549905299,-122.25504016,9.964e-05,2]
[400434261,1767549905638,500.0,0.00030136,120]
[400434262,1767549905871,500.0,0.00030136,120]
[400434263,1767549906115,500.0,0.00030136,120]
[400434264,1767549906517,595.677849,0.00030136,120]
[400434265,1767549907628,500.0,0.00030136,120]
[400434266,1767549907684,500.0,0.00030136,120]
[400434267,1767549907760,-261.69848242,9.964e-05,2]
[400434268,1767549907855,232.3239318,0.00030136,120]
[400434269,1767549907919,500.0,0.00030136,120]
[400434270,1767549908130,328.30676738,0.00030136,120]
[400434271,1767549908278,300.0,9.963e-05,2]
[400434282,1767549908912,1200.0,9.963e-05,2]
[400434284,1767549909280,174.61,9.001e-05,2]
[400434285,1767549909743,203.71,9.347e-05,2]
[400434286,1767549909802,-116.04647742,9.964e-05,2]
[400434287,1767549909827,-127.24054374,9.964e-05,2]
[400434288,1767549910135,232.81,9.693e-05,2]
[400434289,1767549910189,500.0,0.00030136,120]
[400434290,1767549910423,500.0,0.00030136,120]
[400434291,1767549910665,500.0,0.00030136,120]
[400434292,1767549911141,500.0,0.00030136,120]
[400434293,1767549911232,500.0,0.00030136,120]
[400434294,1767549911295,271.6665292,0.00030136,120]
[400434295,1767549911368,251.12083785,0.00030136,120]
[400434296,1767549911770,-299.33877867,9.964e-05,2]
[400434297,1767549911906,2095.09,0.00030136,120]
[400434298,1767549911953,500.0,0.00030136,120]
[400434299,1767549912244,500.0,0.00030136,120]
[400434300,1767549912309,2095.09,0.00030136,120]
[400434301,1767549912526,500.0,0.00030136,120]
[400434302,1767549912589,2095.09,0.00030136,120]
[400434303,1767549912750,552.04267136,0.00030136,120]
[400434304,1767549912829,2095.09,0.00030136,120]
[400434305,1767549913044,2095.09,0.00030136,120]
[400434306,1767549913153,-73.42067759,9.964e-05,2]
[400434307,1767549913184,-500.0,9.964e-05,2]
[400434308,1767549913212,-500.0,9.964e-05,2]
[400434309,1767549913241,-500.0,9.964e-05,2]
[400434310,1767549913271,-500.0,9.964e-05,2]
[400434311,1767549913303,-500.0,9.964e-05,2]
[400434312,1767549913332,-500.0,9.964e-05,2]
[400434313,1767549913361,-500.0,9.964e-05,2]
[400434314,1767549913392,-500.0,9.964e-05,2]
[400434315,1767549913423,-500.0,9.964e-05,2]
[400434316,1767549913451,-353.16864482,9.964e-05,2]
[400434317,1767549913594,2095.09,0.00030136,120]
[400434318,1767549913738,-146.83135518,9.964e-05,2]
[400434319,1767549913769,-500.0,9.964e-05,2]
[400434320,1767549913800,-500.0,9.964e-05,2]
[400434321,1767549913831,-500.0,9.964e-05,2]
[400434322,1767549913861,-500.0,9.964e-05,2]
[400434323,1767549913893,-500.0,9.964e-05,2]
[400434324,1767549913925,-500.0,9.964e-05,2]
[400434326,1767549913956,-500.0,9.964e-05,2]
[400434328,1767549913986,-500.0,9.964e-05,2]
[400434330,1767549914016,-500.0,9.964e-05,2]
[400434332,1767549914046,-206.34728964,9.964e-05,2]
[400434340,1767549914242,2095.09,0.00030136,120]
[400434342,1767549914276,-293.65271036,9.964e-05,2]
[400434344,1767549914307,-500.0,9.964e-05,2]
[400434345,1767549914336,-500.0,9.964e-05,2]
[400434346,1767549914365,-500.0,9.964e-05,2]
[400434347,1767549914396,-500.0,9.964e-05,2]
[400434348,1767549914426,-500.0,9.964e-05,2]
[400434349,1767549914457,-500.0,9.964e-05,2]
[400434350,1767549914487,-596.85650301,9.964e-05,2]
[400434351,1767549914517,-500.0,9.964e-05,2]
[400434352,1767549914546,-500.0,9.964e-05,2]
[400434353,1767549914635,-500.0,9.964e-05,2]
[400434354,1767549914666,-248.17749788,9.964e-05,2]
[400434355,1767549914697,-500.0,9.964e-05,2]
[400434356,1767549914728,-500.0,9.964e-05,2]
[400434357,1767549914759,-500.0,9.964e-05,2]
[400434358,1767549914920,-500.0,9.964e-05,2]
[400434359,1767549914953,-500.0,9.964e-05,2]
[400434360,1767549914983,-500.0,9.964e-05,2]
[400434361,1767549915013,-500.0,9.964e-05,2]
[400434362,1767549915042,-392.76406357,9.964e-05,2]
[400434363,1767549915071,-274.03530398,9.964e-05,2]
[400434364,1767549915180,-193.58627689,9.964e-05,2]
[400434365,1767549915352,2095.09,0.00030136,120]
[400434366,1767549915520,-306.41372311,9.964e-05,2]
[400434367,1767549915552,-500.0,9.964e-05,2]
[400434368,1767549915585,-500.0,9.964e-05,2]
[400434369,1767549915618,-649.99999999,9.964e-05,2]
[400434370,1767549915651,-500.0,9.964e-05,2]
[400434371,1767549915682,-500.0,9.964e-05,2]
[400434372,1767549915713,-300.0,9.964e-05,2]
[400434373,1767549915743,-500.0,9.964e-05,2]
[400434374,1767549915774,-500.0,9.964e-05,2]
[400434375,1767549915804,-500.0,9.964e-05,2]
[400434376,1767549915869,2095.09,0.00030136,120]
[400434377,1767549916099,2095.09,0.00030136,120]
[400434378,1767549916489,2095.09,0.00030136,120]
[400434379,1767549916749,2095.09,0.00030136,120]
[400434380,1767549916952,2095.09,0.00030136,120]
[400434381,1767549917066,2095.09,0.00030136,120]
[400434382,1767549917370,2095.09,0.00030136,120]
[400434383,1767549917490,2095.09,0.00030136,120]
[400434384,1767549917588,2095.09,0.00030136,120]
[400434385,1767549917680,2095.09,0.00030136,120]
[400434386,1767549917780,2095.09,0.00030136,120]
[400434387,1767549917844,2095.09,0.00030136,120]
[400434388,1767549917924,2095.09,0.00030136,120]
[400434389,1767549917960,-164.62526406,9.964e-05,2]
[400434390,1767549918041,2095.09,0.00030136,120]
[400434391,1767549918132,2095.09,0.00030136,120]
[400434392,1767549918241,2095.29328219,0.00030136,120]
[400434393,1767549919032,-357.02846024,9.964e-05,2]
[400434394,1767549920932,-303.21195072,9.964e-05,2]
[400434395,1767549922934,-228.08421647,9.964e-05,2]
[400434396,1767549924405,-252.84726464,9.964e-05,2]
[400434397,1767549924633,500.0,0.00030136,120]
[400434398,1767549924992,500.0,0.00030136,120]
[400434399,1767549925231,356.97072002,0.00030136,120]
[400434400,1767549926629,513.35420977,0.00030136,120]
[400434401,1767549927433,-255.08551362,9.964e-05,2]
[400434402,1767549929192,-3500.01,9.964e-05,2]
[400434403,1767549929271,-10000.01,9.964e-05,2]
[400434404,1767549929461,-10000.01,9.964e-05,2]
[400434405,1767549929594,-240.44569934,9.964e-05,2]
[400434406,1767549929717,546.00376762,0.00030136,120]
[400434407,1767549929777,-10000.01,9.964e-05,2]
[400434408,1767549929983,-10000.01,9.964e-05,2]
[400434409,1767549930201,-4698.62163091,9.964e-05,2]
[400434410,1767549930545,500.0,0.00030136,120]
[400434411,1767549930783,500.0,0.00030136,120]
[400434412,1767549931033,500.0,0.00030136,120]
[400434413,1767549931284,500.0,0.00030136,120]
[400434414,1767549931536,189.32410436,0.00030136,120]
[400434415,1767549932044,-173.67069067,9.965e-05,2]
[400434416,1767549933319,500.0,0.00030136,120]
[400434417,1767549933373,500.0,0.00030136,120]
[400434418,1767549933562,314.55937999,0.00030136,120]
[400434419,1767549933620,500.0,0.00030136,120]
[400434420,1767549933823,214.87474111,0.00030136,120]
[400434421,1767549934110,-188.2035738,9.965e-05,2]
[400434422,1767549934132,-286.81136676,9.965e-05,2]
[400434423,1767549934157,-44.82192495,9.965e-05,2]
[400434424,1767549936265,382.32246452,0.00030136,120]
[400434425,1767549937147,154.0,8.3e-07,2]
[400434426,1767549937775,-211.95799355,9.965e-05,2]
[400434427,1767549938665,200.0,9.919e-05,2]
[400434428,1767549939330,500.0,0.00030136,120]
[400434429,1767549939564,500.0,0.00030136,120]
[400434430,1767549939801,293.48109538,0.00030136,120]
[400434431,1767549939832,-243.2200815,9.965e-05,2]
[400434432,1767549939857,-227.92739227,9.965e-05,2]
[400434433,1767549940247,248.76673818,9.919e-05,2]
[400434434,1767549943143,-1.23326182,9.919e-05,2]
[400434435,1767549948144,500.0,0.00030136,120]
[400434436,1767549948372,500.0,0.00030136,120]
[400434438,1767549948637,500.0,0.00030136,120]
[400434439,1767549948855,500.0,0.00030136,120]
[400434440,1767549949086,586.1566709,0.00030136,120]
[400434441,1767549951340,-272.07260773,9.965e-05,2]
[400434442,1767549951366,-64.27700517,9.965e-05,2]
[400434443,1767549954062,-288.7428616,9.965e-05,2]
[400434444,1767549955698,-146.98013323,9.965e-05,2]
[400434445,1767549955726,-368.47453225,9.965e-05,2]
[400434446,1767549957233,-131.52546775,9.965e-05,2]
[400434447,1767549957258,-187.96584814,9.965e-05,2]
[400434448,1767549959944,-203.56335791,9.965e-05,2]
[400434449,1767549960936,500.0,0.00030136,120]
[400434450,1767549961175,500.0,0.00030136,120]
[400434451,1767549961415,500.0,0.00030136,120]
[400434452,1767549961651,574.20678959,0.00030136,120]
[400434453,1767549961996,-108.47079395,9.965e-05,2]
[400434454,1767549962021,-97.82648713,9.965e-05,2]
[400434455,1767549962386,300.0,9.964e-05,2]
[400434456,1767549964485,-402.17351287,9.965e-05,2]
[400434457,1767549964510,-500.0,9.965e-05,2]
[400434458,1767549964535,-296.52487137,9.965e-05,2]
[400434459,1767549965036,526.00685386,0.00030136,120]
[400434460,1767549965901,-203.47512863,9.965e-05,2]
[400434461,1767549965927,-489.60534887,9.965e-05,2]
[400434462,1767549968971,-10.39465113,9.965e-05,2]
[400434463,1767549969000,-333.59274355,9.965e-05,2]
[400434464,1767549970432,500.0,0.00030136,120]
[400434465,1767549970730,239.03376659,0.00030136,120]
[400434466,1767549971055,-166.40725645,9.965e-05,2]
[400434467,1767549971080,-18.15952203,9.965e-05,2]
[400434468,1767549973725,-172.02805785,9.965e-05,2]
[400434469,1767549975266,-174.02008125,9.965e-05,2]
[400434470,1767549975930,5000.0,9.964e-05,2]
[400434471,1767549976727,-162.79696376,9.965e-05,2]
[400434472,1767549978283,191.98,8.203e-05,2]
[400434473,1767549978671,239.97,8.545e-05,2]
[400434474,1767549978913,344.66573703,0.00030136,120]
[400434475,1767549979072,287.97,8.887e-05,2]
[400434476,1767549979298,269.42416724,0.00030136,120]
[400434477,1767549979481,335.96,9.228e-05,2]
[400434478,1767549979871,383.96,9.57e-05,2]
[400434479,1767549980251,431.95,9.912e-05,2]
[400434480,1767549981812,-61.57106168,9.965e-05,2]
[400434481,1767549981839,-375.71438052,9.965e-05,2]
[400434482,1767549984962,-124.28561948,9.965e-05,2]
[400434483,1767549984985,-145.74722812,9.966e-05,2]
[400434484,1767549986529,-190.59383662,9.966e-05,2]
[400434486,1767549989484,-281.12842569,9.966e-05,2]
[400434491,1767549990966,-319.08282427,9.966e-05,2]
[400434492,1767549990993,-91.31085759,9.966e-05,2]
[400434493,1767549992540,-296.05096189,9.966e-05,2]
[400434494,1767549995834,-231.53388265,9.965e-05,2]
[400434496,1767549998134,-267.0,9.965e-05,2]
[400434497,1767549998666,161.96452039,0.00030136,120]
[400434498,1767549998940,2825.75347636,9.964e-05,2]
[400434499,1767549998963,2174.24652364,9.964e-05,2]
[400434500,1767549999921,-42.5231911,9.965e-05,2]
[400434501,1767549999943,-133.86860896,9.965e-05,2]
[400434502,1767550002844,-198.67561924,9.965e-05,2]
[400434503,1767550004432,-306.14216045,9.965e-05,2]
[400434504,1767550004456,-163.08982215,9.965e-05,2]
[400434505,1767550008335,-281.21732008,9.965e-05,2]
[400434506,1767550010397,-55.69285777,9.965e-05,2]
[400434507,1767550010423,-168.06260476,9.965e-05,2]
[400434508,1767550014152,-120.47700669,9.965e-05,2]
[400434509,1767550014176,-134.88929806,9.965e-05,2]
[400434510,1767550014839,217.442454,9.964e-05,2]
[400434511,1767550016235,-304.0,9.965e-05,2]
[400434512,1767550018597,-61.11070194,9.965e-05,2]
[400434513,1767550018625,-482.94929806,9.965e-05,2]
[400434514,1767550020095,-17.05070194,9.965e-05,2]
[400434515,1767550020120,-182.20607008,9.965e-05,2]
[400434516,1767550020148,-243.87176837,9.966e-05,2]
[400434517,1767550021630,-504.66520894,9.966e-05,2]
[400434518,1767550022595,5000.0,9.964e-05,2]
[400434519,1767550023166,-180.71406105,9.965e-05,2]
[400434520,1767550024720,-119.28593895,9.965e-05,2]
[400434521,1767550024748,-47.07312629,9.966e-05,2]
[400434522,1767550029725,-228.2771496,9.966e-05,2]
[400434523,1767550032789,-177.7,9.966e-05,2]
[400434524,1767550034529,210.9859804,0.00030136,120]
[400434525,1767550035589,-811.30341874,9.966e-05,2]
[400434526,1767550037510,-343.50205871,9.966e-05,2]
[400434527,1767550039066,-183.05847986,9.966e-05,2]
[400434528,1767550040440,-249.18485632,9.966e-05,2]
[400434529,1767550041533,514.41818676,0.00030136,120]
[400434530,1767550041630,200.0,0.00030136,120]
[400434531,1767550041863,200.0,0.00030136,120]
[400434532,1767550042103,200.0,0.00030136,120]
[400434533,1767550042381,200.0,0.00030136,120]
[400434534,1767550043432,200.0,0.00030136,120]
[400434535,1767550043674,200.0,0.00030136,120]
[400434536,1767550043910,200.0,0.00030136,120]
[400434537,1767550044249,200.0,0.00030136,120]
[400434538,1767550044492,200.0,0.00030136,120]
[400434539,1767550044595,-273.46329992,9.966e-05,2]
[400434540,1767550044759,200.0,0.00030136,120]
[400434541,1767550045035,200.0,0.00030136,120]
[400434542,1767550045328,200.0,0.00030136,120]
[400434543,1767550045563,200.0,0.00030136,120]
[400434544,1767550045832,200.0,0.00030136,120]
[400434545,1767550046061,2608.32102236,9.964e-05,2]
[400434546,1767550046107,200.0,0.00030136,120]
[400434547,1767550046341,200.0,0.00030136,120]
[400434548,1767550046586,-179.00505608,9.964e-05,2]
[400434549,1767550046639,200.0,0.00030136,120]
[400434550,1767550046685,346.76670493,0.00030136,120]
[400434551,1767550046881,314.84598156,0.00030136,120]
[400434552,1767550047409,172.87,7.811e-05,2]
[400434553,1767550047797,230.49,8.15e-05,2]
[400434554,1767550048200,288.11,8.49e-05,2]
[400434555,1767550048621,345.73,8.83e-05,2]
[400434556,1767550049505,403.35,9.169e-05,2]
[400434557,1767550049943,460.97,9.509e-05,2]
[400434558,1767550050343,518.6,9.848e-05,2]
[400434559,1767550050656,304.19635024,0.00030136,120]
[400434560,1767550055924,278.31839845,0.00030136,120]
[400434562,1767550062560,504.26908047,0.00030136,120]
[400434563,1767550064333,500.0,0.00030136,120]
[400434564,1767550064584,500.0,0.00030136,120]
[400434565,1767550064836,509.48509793,0.00030136,120]
[400434567,1767550075209,267.72670232,0.00030136,120]
[400434568,1767550077202,367.57,0.00030136,120]
[400434569,1767550080998,186.79662127,0.00030136,120]
[400434575,1767550091853,500.0,0.00030136,120]
[400434576,1767550092083,158.86702408,0.00030136,120]
[400434577,1767550092130,511.76555446,0.00030136,120]
[400434578,1767550094981,1242.88,0.00030136,120]
[400434579,1767550095242,1242.88,0.00030136,120]
[400434580,1767550095519,1242.88,0.00030136,120]
[400434581,1767550095753,1242.88,0.00030136,120]
[400434582,1767550096028,1242.88,0.00030136,120]
[400434583,1767550096260,1242.88,0.00030136,120]
[400434584,1767550096489,1242.88,0.00030136,120]
[400434585,1767550096745,1242.88,0.00030136,120]
[400434586,1767550096988,1242.88,0.00030136,120]
[400434587,1767550097222,1242.88,0.00030136,120]
[400434588,1767550097475,1242.88,0.00030136,120]
[400434589,1767550097756,1242.88,0.00030136,120]
[400434590,1767550097994,1242.88,0.00030136,120]
[400434591,1767550098238,1242.88,0.00030136,120]
[400434592,1767550098882,1242.88,0.00030136,120]
[400434593,1767550098969,1242.88,0.00030136,120]
[400434594,1767550099111,1242.88,0.00030136,120]
[400434595,1767550099284,452.15969882,0.00030136,120]
[400434596,1767550099352,1242.88,0.00030136,120]
[400434597,1767550099620,1242.88,0.00030136,120]
[400434598,1767550099864,1242.88,0.00030136,120]
[400434599,1767550099993,605.95376593,0.00030136,120]
[400434600,1767550100100,1242.88,0.00030136,120]
[400434601,1767550100336,1242.88,0.00030136,120]
[400434602,1767550100575,1242.88,0.00030136,120]
[400434604,1767550100815,1243.06887954,0.00030136,120]
[400434609,1767550106026,226.10526058,0.00030136,120]
[400434611,1767550107849,244.96632101,0.00030136,120]
[400434612,1767550114018,500.0,0.00030136,120]
[400434613,1767550114256,213.68710706,0.00030136,120]
[400434614,1767550117550,325.5990117,0.00030136,120]
[400434615,1767550119746,160.92,8.838e-05,2]
[400434616,1767550120152,187.74,9.178e-05,2]
[400434617,1767550120815,214.56,9.518e-05,2]
[400434618,1767550121000,241.38,9.858e-05,2]
[400434619,1767550121086,500.0,0.00030136,120]
[400434620,1767550121416,549.13066279,0.00030136,120]
[400434622,1767550129582,500.0,0.00030136,120]
[400434623,1767550129639,207.834551,0.00030136,120]
[400434624,1767550129801,500.0,0.00030136,120]
[400434625,1767550130053,500.0,0.00030136,120]
[400434626,1767550130309,402.27277727,0.00030136,120]
[400434627,1767550131672,468.4379581,0.00030136,120]
[400434628,1767550132941,504.82187219,0.00030136,120]
[400434629,1767550141447,-2212.67392156,9.964e-05,2]
[400434630,1767550141978,-160.24657823,9.965e-05,2]
[400434633,1767550143441,-189.10918555,9.965e-05,2]
[400434634,1767550144865,191.87659952,0.00030136,120]
[400434635,1767550145563,381.99204227,0.00030136,120]
[400434636,1767550148050,-110.89081445,9.965e-05,2]
[400434637,1767550148085,-113.21672169,9.965e-05,2]
[400434638,1767550148129,-53.28525054,9.965e-05,2]
[400434639,1767550151088,-125.71980554,9.965e-05,2]
[400434640,1767550151114,-160.24657823,9.965e-05,2]
[400434641,1767550151145,-35.02856015,9.966e-05,2]
[400434642,1767550153149,-174.46640061,9.966e-05,2]
[400434643,1767550155297,-316.94152014,9.966e-05,2]
[400434644,1767550156816,-224.38933574,9.965e-05,2]
[400434687,1767550159344,376.25514351,0.0001,14]
[400434689,1767550159878,-242.6933364,9.965e-05,2]
[400434695,1767550161836,-131.30505846,9.965e-05,2]
[400434696,1767550161863,-58.63073865,9.966e-05,2]
[400434700,1767550164291,-167.24772702,9.966e-05,2]
[400434704,1767550166964,-228.59411619,9.966e-05,2]
[400434707,1767550170369,-271.60931193,9.966e-05,2]
[400434709,1767550171316,4614.7264092,9.161e-05,2]
[400434710,1767550172385,-186.53817251,9.966e-05,2]
[400434711,1767550173382,174.46640061,9.965e-05,2]
[400434712,1767550173883,500.0,0.00030136,120]
[400434713,1767550174140,223.91516347,0.00030136,120]
[400434714,1767550174467,-241.272812,9.966e-05,2]
[400434715,1767550178132,-225.44136816,9.966e-05,2]
[400434716,1767550181518,-209.65154295,9.966e-05,2]
[400434717,1767550183500,-297.29640192,9.966e-05,2]
[400434719,1767550185083,-228.39068807,9.966e-05,2]
[400434720,1767550186840,170.41,9.965e-05,2]
[400434721,1767550186869,316.94152014,9.965e-05,2]
[400434722,1767550187050,-316.34001224,9.966e-05,2]
[400434724,1767550189967,-898.44545551,9.966e-05,2]
[400434725,1767550190069,-10000.01,9.966e-05,2]
[400434726,1767550190216,-272.13331802,9.966e-05,2]
[400434727,1767550190523,-10000.01,9.966e-05,2]
[400434728,1767550190636,-10000.01,9.966e-05,2]
[400434729,1767550192053,-155.7208026,9.966e-05,2]
[400434730,1767550194361,500.0,0.00030136,120]
[400434731,1767550194615,500.0,0.00030136,120]
[400434732,1767550194840,500.0,0.00030136,120]
[400434733,1767550195065,500.0,0.00030136,120]
[400434734,1767550195302,500.0,0.00030136,120]
[400434735,1767550195533,271.49444529,0.00030136,120]
[400434736,1767550201900,-10000.01,9.966e-05,2]
[400434737,1767550202069,-10000.01,9.966e-05,2]
[400434739,1767550226604,484.14592223,0.00030136,120]
[400434749,1767550231755,-300.0,9.965e-05,2]
[400434751,1767550231765,-212.35140376,9.965e-05,2]
[400434752,1767550231776,-347.64859624,9.965e-05,2]
[400434753,1767550231786,-314.95241164,9.965e-05,2]
[400434754,1767550231802,-292.11105471,9.965e-05,2]
[400434755,1767550231815,-329.59,9.965e-05,2]
[400434756,1767550231825,-205.69890128,9.965e-05,2]
[400434757,1767550231835,-476.00757379,9.965e-05,2]
[400434758,1767550231845,-500.0,9.965e-05,2]
[400434759,1767550231855,-562.93107262,9.965e-05,2]
[400434760,1767550231864,-120383.10173422,9.966e-05,2]
[400434761,1767550231874,-354.63677918,9.983e-05,2]
[400434762,1767550231883,-586.14,0.0001,2]
[400434763,1767550231896,-156.31797124,0.0001,2]
[400434764,1767550231905,-3030.62900665,0.00010067,2]
[400434765,1767550231916,-786.27526992,0.00010067,2]
[400434766,1767550231925,-184.91405875,0.00010131,2]
[400434767,1767550231935,-17438.9828501,0.00010153,2]
[400434768,1767550231949,-4344.35673733,0.00010165,2]
[400434769,1767550231963,-366.7701628,0.00010165,2]
[400434770,1767550231972,-650.10241261,0.00010165,2]
[400434771,1767550231982,-250.0,0.00010193,2]
[400434772,1767550231991,-250.0,0.00010193,2]
[400434773,1767550232001,-553.64373807,0.00010193,2]
[400434774,1767550232021,-250.0,0.00010193,2]
[400434775,1767550232031,-250.0,0.00010193,2]